fUST/lending_fUST_20250422
["ID","MTS","AMOUNT","RATE_DAILY","PERIOD"]
[358564661,1745263839595,-500.0,0.00028867,2]
[358564662,1745263839604,-500.0,0.00028867,2]
[358564663,1745263839614,-500.0,0.00028867,2]
[358564664,1745263839624,-500.0,0.00028867,2]
[358564665,1745263839634,-500.0,0.00028867,2]
[358564666,1745263839644,-632.34995502,0.00028867,2]
[358564667,1745263839655,-500.0,0.00028867,2]
[358564668,1745263839665,-500.0,0.00028867,2]
[358564669,1745263839675,-500.0,0.00028867,2]
[358564670,1745263839684,-331.95659999,0.00028867,2]
[358564671,1745263839694,-500.0,0.00028867,2]
[358564672,1745263839704,-500.0,0.00028867,2]
[358564673,1745263839714,-500.0,0.00028867,2]
[358564674,1745263839724,-500.0,0.00028867,2]
[358564675,1745263839733,-500.0,0.00028867,2]
[358564676,1745263839743,-500.0,0.00028867,2]
[358564677,1745263839753,-500.0,0.00028867,2]
[358564678,1745263839762,-500.0,0.00028867,2]
[358564679,1745263839773,-500.0,0.00028867,2]
[358564680,1745263839782,-500.0,0.00028867,2]
[358564681,1745263839792,-500.0,0.00028867,2]
[358564682,1745263839802,-500.0,0.00028867,2]
[358564683,1745263839813,-500.0,0.00028867,2]
[358564684,1745263839824,-569.90978557,0.00028868,2]
[358564685,1745263839834,-500.0,0.00028868,2]
[358564686,1745263839844,-7791.25417544,0.00028869,2]
[358564687,1745263839857,-2767.38334181,0.00028869,2]
[358564688,1745263839881,-2855.36818463,0.00028869,2]
[358564689,1745263839893,-32970.65462087,0.00028869,2]
[358564690,1745263839905,-3273.91548045,0.00028869,2]
[358564691,1745263839917,-68931.18012944,0.00028869,2]
[358564692,1745263839928,-78264.33753636,0.00028869,2]
[358564693,1745263839938,-500.0,0.00028879,2]
[358564694,1745263839947,-500.0,0.00028879,2]
[358564696,1745263839956,-161610.39641646,0.0002888,2]
[358564709,1745263843589,-211.77327816,0.00028878,5]
[358564710,1745263843601,-435.94968441,0.00028878,5]
[358564728,1745263846594,-9352.27703743,0.00028878,5]
[358564729,1745263846605,-10000.0,0.00028878,6]
[358564730,1745263846615,-10000.0,0.00028878,7]
[358564731,1745263846624,-10000.0,0.00028878,8]
[358564732,1745263846633,-3583.25230198,0.00028878,9]
[358564733,1745263846643,-359767.93333562,0.0002888,2]
[358564739,1745264270529,200.0,0.0002001,2]
[358564788,1745265032635,-6221.03240673,0.00026809,2]
[358564789,1745265032646,-1058.7216521,0.00026809,2]
[358564790,1745265032690,-2720.24594117,0.00026809,2]
[358564791,1745265032699,-150.38627394,0.00027,3]
[358564822,1745265038677,-162.45394272,0.00027,3]
[358564824,1745265038686,-312.84021666,0.00027,3]
[358564825,1745265038696,-200.827344,0.00027029,2]
[358564826,1745265038706,-1847.3904572,0.00027549,4]
[358564827,1745265038715,-160.0,0.00027692,2]
[358564828,1745265038724,-968.3912136,0.00027716,2]
[358564829,1745265038733,-893.19112066,0.00028668,2]
[358564830,1745265038742,-61740.3370929,0.0002876,2]
[358564831,1745265038751,-300.0,0.00028768,2]
[358564832,1745265038760,-500.0,0.00028769,2]
[358564833,1745265038769,-500.0,0.00028769,2]
[358564834,1745265038779,-500.0,0.00028769,2]
[358564835,1745265038790,-248.9368499,0.00028769,2]
[358564836,1745265038799,-500.0,0.00028769,2]
[358564837,1745265038808,-500.0,0.00028769,2]
[358564838,1745265038818,-500.0,0.00028769,2]
[358564839,1745265038827,-500.0,0.00028769,2]
[358564840,1745265038836,-570.26110611,0.00028769,2]
[358564841,1745265038848,-500.0,0.00028769,2]
[358564842,1745265038857,-500.0,0.00028769,2]
[358564843,1745265038866,-500.0,0.00028769,2]
[358564844,1745265038875,-500.0,0.00028769,2]
[358564845,1745265038885,-500.0,0.00028769,2]
[358564846,1745265038895,-500.0,0.00028769,2]
[358564847,1745265038904,-583.19566,0.00028769,2]
[358564848,1745265038913,-500.0,0.00028769,2]
[358564849,1745265038924,-500.0,0.00028769,2]
[358564850,1745265038934,-500.0,0.00028769,2]
[358564851,1745265038943,-500.0,0.00028769,2]
[358564852,1745265038952,-500.0,0.00028769,2]
[358564853,1745265038961,-500.0,0.00028769,2]
[358564854,1745265038970,-500.0,0.00028769,2]
[358564856,1745265038979,-500.0,0.00028769,2]
[358564857,1745265038987,-4749.25669945,0.0002877,2]
[358564858,1745265038997,-157637.65224962,0.0002877,2]
[358564859,1745265039009,-158635.9881642,0.0002877,2]
[358564860,1745265039020,-72376.02454246,0.0002877,2]
[358564861,1745265039032,-207190.41586683,0.0002877,2]
[358564862,1745265039043,-1918.93198644,0.0002877,2]
[358564863,1745265039055,-9375.85396381,0.0002877,2]
[358564864,1745265039067,-25008.73384728,0.0002877,2]
[358564865,1745265039078,-293.25048316,0.0002877,2]
[358564873,1745265040974,-167.87915365,0.00027449,2]
[358564874,1745265040985,-167.87915364,0.00028059,2]
[358564875,1745265040994,-167.87915364,0.00028668,2]
[358564876,1745265041003,-11372.36888367,0.0002877,2]
[358564877,1745265041079,-13938.00943857,0.0002877,2]
[358564878,1745265041101,-842.42856795,0.0002877,2]
[358564889,1745265046671,-13365.01089284,0.0002877,2]
[358564890,1745265046683,-1646.76941929,0.0002877,2]
[358564891,1745265046694,-1363.3573757,0.0002877,2]
[358564892,1745265046706,-685.98913599,0.0002877,2]
[358564893,1745265046717,-2127.39452143,0.0002877,2]
[358564894,1745265046729,-2968.92686465,0.0002877,2]
[358564895,1745265046740,-11137.24981811,0.0002877,2]
[358564896,1745265046750,-1598.37027896,0.0002877,2]
[358564921,1745266232120,-647.9926424,0.00025523,2]
[358564922,1745266232130,-200.827344,0.00025995,2]
[358564923,1745266232140,-300.0,0.00026088,2]
[358564924,1745266232149,-300.0,0.00026088,2]
[358564925,1745266232159,-10000.0,0.00026089,2]
[358564926,1745266232168,-500.0,0.0002657,2]
[358564927,1745266232178,-20519.0252759,0.00026668,2]
[358564928,1745266232187,-247.72679242,0.0002667,2]
[358564929,1745266232197,-312.84021666,0.00027,3]
[358564930,1745266232206,-312.84021666,0.00027,3]
[358564931,1745266232216,-234.8226608,0.00027211,2]
[358564932,1745266232229,-39577.39056571,0.00027211,2]
[358564957,1745266237892,-500.0,0.0002721,2]
[358564959,1745266237902,-500.0,0.0002721,2]
[358564961,1745266237912,-500.0,0.0002721,2]
[358564962,1745266237921,-500.0,0.0002721,2]
[358564964,1745266237931,-500.0,0.0002721,2]
[358564966,1745266237940,-224.46620968,0.0002721,2]
[358564968,1745266237953,-275.53379032,0.0002721,2]
[358564969,1745266237962,-500.0,0.0002721,2]
[358564971,1745266237972,-233.60607297,0.0002721,2]
[358564973,1745266237983,-266.39392703,0.0002721,2]
[358564974,1745266237992,-244.70203469,0.0002721,2]
[358564976,1745266238004,-255.29796531,0.0002721,2]
[358564978,1745266238014,-339.68608363,0.0002721,2]
[358564979,1745266238026,-160.31391637,0.0002721,2]
[358564981,1745266238035,-500.0,0.0002721,2]
[358564982,1745266238045,-500.0,0.0002721,2]
[358564983,1745266238054,-500.0,0.0002721,2]
[358564984,1745266238063,-492.68776816,0.0002721,2]
[358564985,1745266238075,-7.31223184,0.0002721,2]
[358564986,1745266238084,-500.0,0.0002721,2]
[358564987,1745266238093,-500.0,0.0002721,2]
[358564988,1745266238103,-500.0,0.0002721,2]
[358564989,1745266238113,-500.0,0.0002721,2]
[358564990,1745266238124,-500.0,0.0002721,2]
[358564991,1745266238135,-500.0,0.0002721,2]
[358564992,1745266238146,-500.0,0.0002721,2]
[358564993,1745266238249,-500.0,0.0002721,2]
[358564994,1745266238265,-500.0,0.0002721,2]
[358564995,1745266238275,-500.0,0.0002721,2]
[358564996,1745266238284,-500.0,0.0002721,2]
[358564997,1745266238294,-500.0,0.0002721,2]
[358564998,1745266238305,-500.0,0.0002721,2]
[358564999,1745266238315,-500.0,0.0002721,2]
[358565000,1745266238324,-500.0,0.0002721,2]
[358565001,1745266238334,-500.0,0.0002721,2]
[358565002,1745266238343,-254.61413108,0.0002721,2]
[358565003,1745266238353,-500.0,0.0002721,2]
[358565004,1745266238363,-500.0,0.0002721,2]
[358565005,1745266238372,-500.0,0.0002721,2]
[358565006,1745266238381,-500.0,0.0002721,2]
[358565007,1745266238391,-500.0,0.0002721,2]
[358565008,1745266238401,-500.0,0.0002721,2]
[358565009,1745266238411,-500.0,0.0002721,2]
[358565010,1745266238421,-500.0,0.0002721,2]
[358565011,1745266238431,-500.0,0.0002721,2]
[358565012,1745266238441,-500.0,0.0002721,2]
[358565013,1745266238450,-500.0,0.0002721,2]
[358565014,1745266238460,-6350.42288011,0.00027211,2]
[358565015,1745266238469,-578.0076869,0.00027218,2]
[358565016,1745266238479,-1847.3904572,0.00027549,4]
[358565017,1745266238488,-722.297446,0.00027973,30]
[358565018,1745266238497,-361.239449,0.00027973,30]
[358565019,1745266238506,-361.239449,0.00027973,30]
[358565020,1745266238515,-361.239449,0.00027973,30]
[358565021,1745266238525,-361.239449,0.00027973,30]
[358565022,1745266238534,-361.239449,0.00027973,30]
[358565023,1745266238543,-361.239449,0.00027973,30]
[358565024,1745266238553,-361.239449,0.00027973,30]
[358565025,1745266238562,-500.0,0.00027973,5]
[358565026,1745266238571,-500.0,0.00027973,5]
[358565027,1745266238581,-500.0,0.00027973,5]
[358565028,1745266238591,-500.0,0.00027973,5]
[358565029,1745266238600,-500.0,0.00027973,5]
[358565030,1745266238610,-500.0,0.00027973,5]
[358565031,1745266238619,-500.0,0.00027973,5]
[358565032,1745266238628,-500.0,0.00027973,5]
[358565033,1745266238638,-500.0,0.00027973,5]
[358565034,1745266238647,-500.0,0.00027973,5]
[358565035,1745266238655,-1699.0,0.00028,2]
[358565036,1745266238665,-152.0,0.00028236,2]
[358565037,1745266238674,-420.0,0.00028357,2]
[358565038,1745266238684,-207815.01297669,0.00028635,2]
[358565039,1745266238696,-2000.0,0.00028635,2]
[358565040,1745266238707,-37774.75299252,0.00028635,2]
[358565041,1745266238731,-6367.9608027,0.00028635,2]
[358565042,1745266238742,-1633.28563498,0.00028635,2]
[358565047,1745266240194,-1955.30845999,0.00028635,2]
[358565048,1745266240206,-1311.59218066,0.00028635,2]
[358565049,1745266240219,-3494.16,0.00028635,2]
[358565063,1745266242865,-30165.43458646,0.00028635,2]
[358565064,1745266242875,-3164.64266174,0.00028635,2]
[358565065,1745266242884,-500.0,0.00028646,2]
[358565066,1745266242894,-248.9368499,0.00028646,2]
[358565067,1745266242903,-16124.59403755,0.00028658,2]
[358565068,1745266242912,-500.0,0.00028673,5]
[358565069,1745266242921,-500.0,0.00028673,2]
[358565070,1745266242930,-500.0,0.00028673,5]
[358565071,1745266242939,-500.0,0.00028673,5]
[358565072,1745266242947,-500.0,0.00028673,5]
[358565073,1745266242956,-637.65976904,0.00028673,5]
[358565074,1745266242965,-500.0,0.00028673,5]
[358565075,1745266242974,-500.0,0.00028673,2]
[358565076,1745266242983,-300.0,0.00028673,5]
[358565077,1745266242999,-409.63592211,0.00028673,5]
[358565079,1745266243012,-502.75357485,0.00028673,2]
[358565080,1745266243021,-543.94367697,0.00028673,5]
[358565081,1745266243031,-500.0,0.00028673,5]
[358565082,1745266243040,-500.0,0.00028673,5]
[358565083,1745266243050,-500.0,0.00028673,5]
[358565084,1745266243059,-287.01917886,0.00028673,5]
[358565085,1745266243068,-500.0,0.00028673,2]
[358565086,1745266243078,-500.0,0.00028773,5]
[358565087,1745266243087,-500.0,0.00028773,5]
[358565088,1745266243097,-500.0,0.00028773,5]
[358565089,1745266243106,-500.0,0.00028773,5]
[358565090,1745266243116,-500.0,0.00028773,5]
[358565091,1745266243125,-500.0,0.00028773,5]
[358565092,1745266243135,-500.0,0.00028773,5]
[358565093,1745266243144,-500.0,0.00028773,5]
[358565094,1745266243154,-500.0,0.00028773,5]
[358565095,1745266243163,-500.0,0.00028773,5]
[358565096,1745266243173,-500.0,0.00028773,5]
[358565097,1745266243193,-500.0,0.00028773,5]
[358565098,1745266243212,-151.0,0.0002878,7]
[358565099,1745266243232,-160.0,0.0002878,3]
[358565100,1745266243246,-151.0,0.000288,13]
[358565101,1745266243263,-167.966,0.00028856,21]
[358565102,1745266243278,-101481.35298892,0.00028878,2]
[358565103,1745266243335,-388.84,0.00028878,2]
[358565104,1745266243351,-44388.56082808,0.00028878,2]
[358565105,1745266243368,-1582.32133087,0.00028878,2]
[358565106,1745266243382,-2855.36818462,0.00028888,2]
[358565107,1745266243397,-1502.51482479,0.000289,2]
[358565108,1745266243412,-729.16666667,0.0002893,2]
[358565109,1745266243426,-366.0370292,0.00028932,30]
[358565110,1745266243438,-48239.68163672,0.00028952,2]
[358565299,1745266245910,-1172.88449596,0.00027873,2]
[358565301,1745266245919,-14431.71466358,0.00028952,2]
[358565322,1745267249462,500.0,0.00019739,2]
[358565323,1745267251420,262.48557448,0.000189,2]
[358565325,1745267330427,150.999999,0.0002,120]
[358565358,1745267432220,-300.0,0.00023729,2]
[358565359,1745267432230,-135.965,0.00023729,2]
[358565375,1745267438273,-164.035,0.00023729,2]
[358565376,1745267438283,-41974.5433453,0.0002373,2]
[358565377,1745267438292,-1026.273934,0.000238,2]
[358565378,1745267438301,-262.48557448,0.000239,2]
[358565379,1745267438311,-354.7046638,0.00023981,2]
[358565380,1745267438320,-219.395573,0.00023987,2]
[358565381,1745267438330,-178.9454139,0.00023994,2]
[358565382,1745267438339,-152.0,0.00024969,2]
[358565383,1745267438348,-536.51387392,0.00024973,2]
[358565384,1745267438358,-500.0,0.00024973,2]
[358565385,1745267438368,-500.0,0.00024973,2]
[358565386,1745267438377,-500.0,0.00024973,2]
[358565387,1745267438387,-500.0,0.00024973,2]
[358565388,1745267438396,-507.44086856,0.00024973,2]
[358565389,1745267438405,-502.76693689,0.00024973,2]
[358565390,1745267438415,-500.0,0.00024973,2]
[358565391,1745267438424,-500.0,0.00024973,2]
[358565392,1745267438434,-500.0,0.00024973,2]
[358565393,1745267438444,-536.00693123,0.00024973,2]
[358565394,1745267438453,-6350.42288011,0.00024973,2]
[358565395,1745267438463,-500.0,0.00024973,2]
[358565396,1745267438472,-500.0,0.00024973,2]
[358565397,1745267438482,-300.0,0.00024973,2]
[358565398,1745267438491,-500.0,0.00024973,2]
[358565399,1745267438500,-500.0,0.00024973,2]
[358565400,1745267438509,-500.0,0.00024973,2]
[358565401,1745267438519,-500.0,0.00024973,2]
[358565402,1745267438528,-542.55119703,0.00024973,2]
[358565403,1745267438537,-500.0,0.00024973,2]
[358565404,1745267438546,-500.0,0.00024973,2]
[358565405,1745267438556,-500.0,0.00024973,2]
[358565406,1745267438566,-504.35344935,0.00024973,2]
[358565407,1745267438576,-500.0,0.00024973,2]
[358565408,1745267438585,-500.0,0.00024973,2]
[358565409,1745267438594,-500.0,0.00024973,2]
[358565410,1745267438604,-17584.5633738,0.0002498,2]
[358565411,1745267438619,-693.42063934,0.00024987,2]
[358565412,1745267438628,-500.0,0.00024987,2]
[358565413,1745267438638,-693.42063934,0.00024987,2]
[358565414,1745267438648,-500.0,0.00024987,2]
[358565415,1745267438658,-693.42063934,0.00024987,2]
[358565416,1745267438667,-693.42063934,0.00024987,2]
[358565417,1745267438677,-558.4224034,0.00024987,2]
[358565418,1745267438687,-693.42063934,0.00024987,2]
[358565419,1745267438698,-693.42063934,0.00024987,2]
[358565420,1745267438707,-693.42063934,0.00024987,2]
[358565421,1745267438812,-693.42063934,0.00024987,2]
[358565422,1745267438822,-693.42063934,0.00024987,2]
[358565423,1745267438831,-693.42063934,0.00024987,2]
[358565424,1745267438840,-693.42063934,0.00024987,2]
[358565425,1745267438850,-693.42063934,0.00024987,2]
[358565426,1745267438859,-693.42063934,0.00024987,2]
[358565427,1745267438869,-693.42063934,0.00024987,2]
[358565428,1745267438878,-693.42063934,0.00024987,2]
[358565429,1745267438888,-693.42063934,0.00024987,2]
[358565430,1745267438900,-693.42063934,0.00024987,2]
[358565431,1745267438910,-693.42063934,0.00024987,2]
[358565432,1745267438920,-693.42063934,0.00024987,2]
[358565433,1745267438930,-693.42063934,0.00024987,2]
[358565434,1745267438939,-693.42063934,0.00024987,2]
[358565435,1745267438951,-693.42063934,0.00024987,2]
[358565436,1745267438961,-693.42063934,0.00024987,2]
[358565437,1745267438970,-693.42063934,0.00024987,2]
[358565438,1745267438979,-693.42063934,0.00024987,2]
[358565439,1745267438988,-693.42063934,0.00024987,2]
[358565440,1745267438997,-693.42063934,0.00024987,2]
[358565441,1745267439006,-693.42063934,0.00024987,2]
[358565442,1745267439015,-693.42063934,0.00024987,2]
[358565443,1745267439025,-693.42063934,0.00024987,2]
[358565444,1745267439034,-693.42063934,0.00024987,2]
[358565445,1745267439043,-693.42063934,0.00024987,2]
[358565446,1745267439052,-693.42063934,0.00024987,2]
[358565447,1745267439062,-693.42063934,0.00024987,2]
[358565448,1745267439071,-693.42063934,0.00024987,2]
[358565449,1745267439080,-693.42063934,0.00024987,2]
[358565450,1745267439090,-693.42063934,0.00024987,2]
[358565451,1745267439099,-693.42063934,0.00024987,2]
[358565452,1745267439108,-693.42063934,0.00024987,2]
[358565453,1745267439118,-693.42063934,0.00024987,2]
[358565454,1745267439128,-693.42063934,0.00024987,2]
[358565455,1745267439137,-693.42063934,0.00024987,2]
[358565456,1745267439147,-693.42063934,0.00024987,2]
[358565457,1745267439156,-693.42063934,0.00024987,2]
[358565458,1745267439165,-693.42063934,0.00024987,2]
[358565459,1745267439174,-693.42063934,0.00024987,2]
[358565460,1745267439183,-693.42063934,0.00024987,2]
[358565461,1745267439192,-693.42063934,0.00024987,2]
[358565462,1745267439201,-693.42063934,0.00024987,2]
[358565463,1745267439210,-693.42063934,0.00024987,2]
[358565464,1745267439219,-693.42063934,0.00024987,2]
[358565465,1745267439228,-693.42063934,0.00024987,2]
[358565466,1745267439237,-2930.7605623,0.0002499,2]
[358565467,1745267439246,-7326.90140575,0.0002499,2]
[358565468,1745267439256,-160.0,0.00024994,2]
[358565469,1745267439265,-500.0,0.00024999,2]
[358565470,1745267439274,-460.62699071,0.00024999,2]
[358565471,1745267439283,-420.65680271,0.00024999,3]
[358565472,1745267439293,-160.0,0.00024999,3]
[358565473,1745267439302,-225551.51031513,0.00025,2]
[358565474,1745267439311,-1699.0,0.00025,2]
[358565475,1745267439320,-4177.0,0.00025,2]
[358565476,1745267439331,-9560.72660773,0.00025,7]
[358565477,1745267439340,-839.72553703,0.00025,2]
[358565478,1745267439350,-99800.0,0.00025,2]
[358565479,1745267439359,-172.0,0.00025,2]
[358565480,1745267439369,-600.4535579,0.00025,2]
[358565481,1745267439380,-900.0,0.00025469,3]
[358565482,1745267439389,-500.0,0.00025476,2]
[358565483,1745267439399,-15019.08774159,0.000255,2]
[358565484,1745267439408,-1000.0,0.000255,2]
[358565485,1745267439417,-420.0,0.0002574,2]
[358565486,1745267439426,-420.0,0.00025858,2]
[358565487,1745267439436,-517.41566205,0.00026,2]
[358565488,1745267439445,-19900.0,0.00026,2]
[358565489,1745267439454,-7757.0,0.00026,2]
[358565490,1745267439464,-600.0,0.00026616,2]
[358565491,1745267439473,-103146.13695217,0.000268,4]
[358565492,1745267439482,-160.0,0.00026875,2]
[358565493,1745267439491,-3000.0,0.000269,2]
[358565494,1745267439501,-1465.38028115,0.0002696,2]
[358565495,1745267439510,-41.85453511,0.00026969,3]
[358565496,1745267440353,-2179.6169066,0.00026969,3]
[358565497,1745267440409,-875.258897,0.00026969,3]
[358565498,1745267440421,-20067.82559696,0.00026969,3]
[358565499,1745267440430,-5862.66551658,0.00026969,2]
[358565500,1745267440442,-549.38090754,0.00026969,2]
[358565501,1745267440466,-12119.02578874,0.00026969,2]
[358565502,1745267440478,-9021.6246977,0.00026969,2]
[358565510,1745267443103,-302.0,0.00026852,2]
[358565511,1745267443160,-724.27393393,0.00026852,2]
[358565512,1745267443170,-13203.610044,0.00026969,2]
[358565516,1745267446167,-1393.94638718,0.00026969,2]
[358565557,1745268446782,500.0,0.00017834,2]
[358565567,1745268632290,-160.0,0.00024891,2]
[358565568,1745268632301,-160.0,0.00024959,2]
[358565569,1745268632311,-250.729568,0.00025082,2]
[358565570,1745268632320,-160.0,0.00025324,2]
[358565571,1745268632330,-160.0,0.00025325,2]
[358565572,1745268632340,-578.0076869,0.00025333,2]
[358565573,1745268632351,-300.0,0.00025841,2]
[358565574,1745268632363,-24900.0,0.00025842,2]
[358565575,1745268632372,-151.0,0.000268,7]
[358565576,1745268632383,-151.0,0.000268,7]
[358565577,1745268632394,-151.0,0.000268,7]
[358565578,1745268632403,-3141.7,0.0002697,2]
[358565579,1745268632412,-172.27151334,0.00027,90]
[358565580,1745268632421,-312.84021666,0.00027,3]
[358565581,1745268632431,-312.84021666,0.00027,3]
[358565582,1745268632440,-151.0,0.000273,11]
[358565583,1745268632449,-77.24947596,0.00027549,4]
[358565584,1745268632477,-1770.14098124,0.00027549,4]
[358565585,1745268632486,-151.0,0.000277,18]
[358565586,1745268632495,-283.8674203,0.00027836,30]
[358565587,1745268632505,-361.057997,0.00027836,30]
[358565588,1745268632514,-167.967,0.00028,18]
[358565589,1745268632524,-420.0,0.00028095,2]
[358565590,1745268632533,-151.0,0.000281,13]
[358565591,1745268632545,-151.0,0.000285,14]
[358565592,1745268632555,-729.16666667,0.00028529,2]
[358565593,1745268632565,-207.4,0.00028703,2]
[358565594,1745268632574,-500.0,0.00028709,2]
[358565595,1745268632584,-173.15804482,0.00028709,2]
[358565596,1745268632594,-500.0,0.00028709,2]
[358565597,1745268632603,-500.0,0.00028709,2]
[358565598,1745268632612,-500.0,0.00028709,2]
[358565599,1745268632622,-500.0,0.00028709,2]
[358565600,1745268632632,-500.0,0.00028709,2]
[358565601,1745268632641,-500.0,0.00028709,2]
[358565602,1745268632651,-500.0,0.00028709,2]
[358565603,1745268632660,-500.0,0.00028709,2]
[358565604,1745268632671,-500.0,0.00028709,2]
[358565605,1745268632680,-500.0,0.00028709,2]
[358565606,1745268632689,-500.0,0.00028709,2]
[358565607,1745268632699,-500.0,0.00028709,2]
[358565608,1745268632708,-500.0,0.00028709,2]
[358565609,1745268632717,-500.0,0.00028709,2]
[358565610,1745268632726,-500.0,0.00028709,2]
[358565611,1745268632736,-500.0,0.00028709,2]
[358565612,1745268632745,-500.0,0.00028709,2]
[358565613,1745268632754,-500.0,0.00028709,2]
[358565614,1745268632763,-500.0,0.00028709,2]
[358565615,1745268632772,-500.0,0.00028709,2]
[358565616,1745268632781,-500.0,0.00028709,2]
[358565617,1745268632792,-500.0,0.00028709,2]
[358565618,1745268632801,-500.0,0.00028709,2]
[358565619,1745268632811,-500.0,0.00028709,2]
[358565620,1745268632820,-500.0,0.00028709,2]
[358565621,1745268632829,-455.77161938,0.00028709,2]
[358565622,1745268632839,-500.0,0.00028709,2]
[358565623,1745268632848,-500.0,0.00028709,2]
[358565624,1745268632857,-500.0,0.00028709,2]
[358565625,1745268632867,-500.0,0.00028709,2]
[358565626,1745268632876,-500.0,0.00028709,2]
[358565627,1745268632885,-500.0,0.00028709,2]
[358565628,1745268632895,-500.0,0.00028709,2]
[358565629,1745268632905,-500.0,0.00028709,2]
[358565630,1745268632914,-500.0,0.00028709,2]
[358565631,1745268632924,-500.0,0.00028709,2]
[358565632,1745268632933,-500.0,0.00028709,2]
[358565633,1745268632944,-500.0,0.00028709,2]
[358565634,1745268632953,-500.0,0.00028709,2]
[358565635,1745268632963,-345.57716194,0.00028709,2]
[358565636,1745268632972,-500.0,0.00028709,2]
[358565637,1745268632983,-500.0,0.00028709,2]
[358565638,1745268632992,-500.0,0.00028709,2]
[358565639,1745268633002,-500.0,0.00028709,2]
[358565640,1745268633011,-500.0,0.00028709,2]
[358565641,1745268633021,-500.0,0.00028709,2]
[358565642,1745268633030,-500.0,0.00028709,2]
[358565643,1745268633040,-500.0,0.00028709,2]
[358565644,1745268633051,-500.0,0.00028709,2]
[358565645,1745268633061,-500.0,0.00028709,2]
[358565646,1745268633071,-500.0,0.00028709,2]
[358565647,1745268633080,-500.0,0.00028709,2]
[358565648,1745268633090,-500.0,0.00028709,2]
[358565649,1745268633100,-500.0,0.00028709,2]
[358565650,1745268633114,-500.0,0.00028709,2]
[358565651,1745268633124,-500.0,0.00028709,2]
[358565652,1745268633133,-500.0,0.00028709,2]
[358565653,1745268633144,-500.0,0.00028709,2]
[358565654,1745268633153,-500.0,0.00028709,2]
[358565655,1745268633163,-6859.4727799,0.0002871,2]
[358565656,1745268633175,-2464.06603903,0.0002871,2]
[358565722,1745268640566,-160.0,0.00024959,2]
[358565723,1745268640575,-1386.78600054,0.0002871,2]
[358565724,1745268640587,-900.0,0.0002871,2]
[358565725,1745268640623,-46159.97458123,0.0002871,2]
[358565746,1745268646289,-250.0,0.00024791,2]
[358565747,1745268646300,-19485.6405,0.0002871,2]
[358565748,1745268646315,-1237.43049552,0.0002871,2]
[358565750,1745268646326,-1970.479062,0.0002871,2]
[358570104,1745269832369,-2373.02886628,0.00024691,2]
[358570105,1745269832379,-160.0,0.00024694,2]
[358570106,1745269832388,-264.3595,0.00024766,2]
[358570109,1745269832398,-729.16666667,0.00024782,2]
[358570112,1745269832407,-446.79888192,0.00024791,2]
[358570118,1745269832431,-434.89445479,0.00024791,2]
[358570120,1745269832443,-118.30666329,0.00024791,2]
[358570122,1745269832453,-197.2134218,0.00024889,2]
[358570124,1745269832463,-165.287178,0.00025385,2]
[358570126,1745269832473,-165.287178,0.00025427,2]
[358570128,1745269832482,-165.287178,0.0002547,2]
[358570129,1745269832492,-165.287178,0.00025512,2]
[358570130,1745269832502,-300.0,0.00026214,2]
[358570131,1745269832511,-1000.0,0.00026215,5]
[358570132,1745269832520,-26148.47011072,0.00026215,2]
[358570133,1745269832530,-1316.16965794,0.0002651,2]
[358570134,1745269832539,-319.67876516,0.0002661,2]
[358570135,1745269832549,-1979.2117311,0.00026793,2]
[358570136,1745269832566,-312.84021666,0.00027,3]
[358570137,1745269832585,-1824.25696372,0.00027064,2]